Cogmind - Beta 16.1 --- EXPLORER MODE // 2026.02.10 @ 09:32:07 Player: K.K.Y. Result: Destroyed by TA-944(R) with Subdweller Laser Performance ------------- Evolutions (0) 0 Regions Visited (2) 400 Robots Destroyed (42) 210 Value Destroyed (956) 956 Prototype IDs (13) 260 Alien Tech Used (0) 0 Bonus (-60) -60 TOTAL SCORE: 1766 Bonus ------- Friendly Fire -60 Cogmind --------- Core Integrity 0/250 Matter 300/300 Energy 180/180 System Corruption 0% Temperature Cool (6) Movement Walking (340) Ox3 Location -10/Subcaves Parts ------- > --- POWER (1) -------- Meta Core > --- PROPULSION (2+1) - Cargo Legs > --- UTILITY (3+2) ---- Humpback > --- WEAPON (2+1) ----- Barrage Gun Barrage Gun (+) Slug Cannon > --- INVENTORY (35) --- Improved Ion Engine Light Nuclear Core Makeshift Power Source Makeshift Power Source Makeshift Power Source Makeshift Power Source Spiked Treads Improved Heat Sink Large Storage Unit High-capacity Storage Unit Light Humpback Humpback Machine Analyzer Machine Analyzer Improved Terrain Scanner Makeshift Cloaking Device Makeshift Light Armor Plating Makeshift System Shield Makeshift System Restoration Module Barrage Gun 1B-0RG's Assimilator Mining Laser Ripper Makeshift Axe Peak State ------------ > --- POWER ------------ Meta Core > --- PROPULSION ------- Cargo Legs > --- UTILITY ---------- Humpback > --- WEAPON ----------- Barrage Gun Barrage Gun Slug Cannon > --- INVENTORY -------- Improved Ion Engine Light Nuclear Core Makeshift Power Source Makeshift Power Source Makeshift Power Source Makeshift Power Source Spiked Treads Improved Heat Sink Large Storage Unit High-capacity Storage Unit Light Humpback Humpback Machine Analyzer Machine Analyzer Improved Terrain Scanner Makeshift Cloaking Device Makeshift Light Armor Plating Makeshift System Shield Makeshift System Restoration Module Barrage Gun 1B-0RG's Assimilator Mining Laser Ripper [Rating: 54] Favorites ----------- Power Meta Core Engine Light Ion Engine Power Core Meta Core Propulsion Light Treads Treads Light Treads Leg Cargo Legs Utility Structural Scanner Device Structural Scanner Storage Large Storage Unit Weapon Assault Rifle Ballistic Gun Assault Rifle Ballistic Cannon Battle Cannon Build | -11 -10 -10 ------- Run | Yrd Mat Sub Slots Evolved 1 | . 1 . Power . | . . . Propulsion . | . . . Utility 1 | . 1 . Weapon . | . . . Parts Attached 22 | 6 4 12 Power 5 | 1 1 3 Engine 4 | 1 1 2 Core 1 | . . 1 Reactor . | . . . Propulsion 6 | 2 . 4 Treads 5 | 2 . 3 Leg 1 | . . 1 Wheel . | . . . Hover . | . . . Flight . | . . . Utility 5 | 1 3 1 Device 2 | . 2 . Storage 3 | 1 1 1 Processor . | . . . Hackware . | . . . Protection . | . . . Artifact . | . . . Weapon 6 | 2 . 4 Energy Gun . | . . . Energy Cannon . | . . . Ballistic Gun 4 | 2 . 2 Ballistic Cannon 2 | . . 2 Launcher . | . . . Special Weapon . | . . . Impact Weapon . | . . . Slashing Weapon . | . . . Piercing Weapon . | . . . Special Melee Weapon . | . . . Unidentified Prototypes . | . . . Parts Lost 6 | . 1 5 Power 2 | . 1 1 Propulsion . | . . . Utility 2 | . . 2 Weapon 2 | . . 2 Highest Loss Streak 2 | . 1 2 To Critical Strikes . | . . . Average Backups 13 | . 5 15 Power 2 | . . 2 Propulsion . | . . . Utility 7 | . 3 8 Weapon 2 | . 1 2 Tool/Special . | . . . Unused Backups 22 | . . 22 Power 5 | . . 5 Propulsion 1 | . . 1 Utility 11 | . . 11 Weapon 4 | . . 4 Tool/Special 1 | . . 1 Average Slot Usage (%) 74 | . 79 73 Engine 6 | . 10 5 Core 3 | . . 4 Treads 15 | . 25 13 Leg 2 | . . 3 Device 12 | . 6 13 Storage 10 | . 12 9 Ballistic Gun 17 | . 25 16 Ballistic Cannon 4 | . . 5 Peak Build Rating 54 | 6 9 54 Average Rating 25 | 4 6 30 On Entrance 5 | . 6 9 Avg Prop Armor Cover (%) . | . . . Naked Turns . | . . . Heaviest Build 219 | 17 29 219 Greatest Support 55 | 40 40 55 Greatest Overweight (x) 5 | . . 5 Average Overweight (x) 1 | . . 1 Largest Inventory Capacity 35 | 10 15 35 Average Capacity 23 | 8 14 26 Most Carried 30 | 5 9 30 Average Carried 15 | 1 5 18 Final Capacity 35 | 10 15 35 Final Carried 30 | 2 7 30 Class Distribution -------------------- 55% | Hacker-Mutant 27% | Hauler-Mutant 16% | Hauler-Gunner Dominant Class ---------------- Hacker-Mutant | -10/Materials Hacker-Mutant | -10/Subcaves Resources | -11 -10 -10 ----------- Run | Yrd Mat Sub Matter Collected 1358 | 278 235 845 Remotely . | . . . Salvage Created 1408 | 129 604 675 Parts 94 | 14 37 43 Haulers Intercepted 2 | . 2 . Recyclers Shooed . | . . . Parts Field Recycled . | . . . Retrieved Matter . | . . . Parts Self-Destructed . | . . . Prevented . | . . . Parts Restored . | . . . Kills | -11 -10 -10 ------- Run | Yrd Mat Sub Combat Hostiles Destroyed 27 | . 8 19 Guns 22 | . 8 14 Cannons 5 | . . 5 Classes Destroyed 11 | 2 6 3 Builder 1 | . 1 . Tunneler 2 | 2 . . Hauler 2 | . 2 . Recycler 4 | 1 3 . Mechanic 1 | . 1 . Watcher 3 | . 3 . Swarmer 8 | . 6 2 Grunt 3 | . 2 1 Cobbler 1 | . . 1 Subdweller 16 | . . 16 Zionite 2 | . . 2 Best Kill Streak 5 | 2 5 3 Combat Bots Only 3 | . 2 3 Max Kills in Single Turn 2 | 1 2 1 Gunslinging . | . . . Exploded . | . . . Melee . | . . . Uniques/NPCs Destroyed . | . . . Combat | -11 -10 -10 -------- Run | Yrd Mat Sub Hostile Shots Fired 161 | . 37 124 Missed 46 | . 15 31 Hits 115 | . 22 93 Projectile 115 | . 22 93 AOE 1 | . . 1 Critical Strikes 1 | . . 1 Damage Taken 1434 | . 198 1236 Core 253 | . 70 183 Absorbed by Shields . | . . . Ignored by Resistances 820 | . 130 690 Core Remaining (%) 100 | 100 . . Volleys Fired 145 | 3 35 107 Largest 3 | 2 2 3 Hottest 96 | 40 40 96 Shots Fired 255 | 6 70 179 Gun 198 | 6 70 122 Cannon 57 | . . 57 Launcher . | . . . Special . | . . . Kinetic 255 | 6 70 179 Thermal . | . . . Explosive . | . . . Electromagnetic . | . . . Robot Hit Streak 51 | 5 16 51 Robot Miss Streak 3 | . 3 1 Penetration Max . | . . . Secondary Targets 4 | . 1 3 Max Gunslinging Chain 1 | . 1 1 Shots Hit Robots 191 | 5 52 134 Core Hits 72 | 3 26 43 Critical Kills 1 | . . 1 Critical Parts Destroyed . | . . . Critical Strikes 4 | . . 4 Destroy 1 | . . 1 Blast 3 | . . 3 Melee Attacks . | . . . Impact . | . . . Slashing . | . . . Piercing . | . . . Sneak Attacks . | . . . Combat Hostiles . | . . . Follow-up Attacks . | . . . Damage Inflicted 2920 | 62 678 2180 Guns 2117 | 62 678 1377 Cannons 803 | . . 803 Explosions . | . . . Melee . | . . . Ramming . | . . . Kinetic 2920 | 62 678 2180 Thermal . | . . . Explosive . | . . . Electromagnetic . | . . . Impact . | . . . Slashing . | . . . Piercing . | . . . Highest Corruption . | . . . Average Corruption . | . . . Corruption Purged . | . . . Corruption Blocked . | . . . Overload Shots . | . . . Overflow Damage . | . . . Projectiles . | . . . Explosions . | . . . Melee . | . . . Knockbacks 6 | . . 6 Impact . | . . . Kinetic 6 | . . 6 Secondary . | . . . Self-Inflicted Damage . | . . . Shots . | . . . Rammed . | . . . Targets Rammed . | . . . Kicked . | . . . Crushed . | . . . Highest Temperature 8 | . 8 . Average Temperature 3 | . 3 . Received Heat Transfer 483 | . 57 426 Siege Activations . | . . . Martial Activations . | . . . Shielding Activations . | . . . Robots Disrupted . | . . . Combat Hostiles . | . . . Robots Corrupted . | . . . Combat Hostiles . | . . . Parts Fried . | . . . Impact Corruptions . | . . . Robots Melted . | . . . Combat Hostiles . | . . . Parts Melted . | . . . Heat Transferred . | . . . Parts Sabotaged . | . . . Parts Stolen . | . . . Parts Stripped . | . . . Power Chain Reactions . | . . . Alert | -11 -10 -10 ------- Run | Yrd Mat Sub Maximum Alert Level . | . . . Low Security (%) 100 | 100 100 . Level 1 . | . . . Level 2 . | . . . Level 3 . | . . . Level 4 . | . . . Level 5 . | . . . High Security . | . . . Max Security . | . . . Peak Influence 55 | 10 55 . Initial . | . . . Average 5 | 1 5 . Influence Increases 373 | 15 278 80 Destroy 0b10 Robot/C 220 | . 160 60 Destroy 0b10 Robot/NC 65 | 15 50 . Destroy Leader 70 | . 50 20 Successful Hack 18 | . 18 . Influence Decreases 373 | 15 278 80 Time Decay 373 | 15 278 80 Squads Dispatched . | . . . Investigation . | . . . Extermination . | . . . Reinforcement . | . . . Assault . | . . . Garrison . | . . . Intercept . | . . . Searches Triggered . | . . . Construction Impeded . | . . . Haulers Reinforced . | . . . Active Scanning Responses . | . . . Cargo Convoy Interrupts . | . . . Stealth | -11 -10 -10 --------- Run | Yrd Mat Sub Distress Signals . | . . . Communications Jammed . | . . . Distress Signals . | . . . Times Spotted 31 | . 11 20 Peak Tracking Total 3 | . 2 3 Tactical Retreats . | . . . Traps | -11 -10 -10 ------- Run | Yrd Mat Sub Traps Triggered 5 | . 3 2 Indirectly . | . . . Trap Hack Attempts . | . . . Triggered . | . . . Disarmed . | . . . Reprogrammed . | . . . Reused . | . . . Traps Extracted . | . . . Installed . | . . . Triggered . | . . . Machines | -11 -10 -10 ---------- Run | Yrd Mat Sub Machines Disabled 1 | . . 1 Max in Single Turn 1 | . . 1 Machines Repaired . | . . . Machines Dismantled . | . . . Machines Sabotaged . | . . . Overloaded Fab Kills . | . . . Hacking | -11 -10 -10 --------- Run | Yrd Mat Sub Machines Accessed 14 | . 10 4 Terminals 8 | . 8 . Fabricators . | . . . Repair Stations . | . . . Recycling Units 2 | . 2 . Scanalyzers . | . . . Garrison Access . | . . . Total Hacks 31 | . 15 16 Successful 29 | . 13 16 Failed 2 | . 2 . Catastrophic . | . . . Database Lockouts . | . . . Manual 10 | . 10 . Terminals 12 | . 12 . Fabricators . | . . . Repair Stations . | . . . Recycling Units 3 | . 3 . Scanalyzers . | . . . Garrison Access . | . . . Terminal Hacks 18 | . 2 16 Record 13 | . . 13 Robot Analysis 1 | . 1 . Open Door 1 | . . 1 Locate Traps 1 | . 1 . Proto ID Catalog 1 | . . 1 Release Object 1 | . . 1 Fabricator Hacks . | . . . Repair Station Hacks . | . . . Recycling Unit Hacks 3 | . 3 . Retrieve Components 3 | . 3 . Scanalyzer . | . . . Garrison Access Hacks . | . . . Unauthorized Hacks 8 | . 8 . Terminals 8 | . 8 . Botnet 8 | . 8 . Fabricators . | . . . Repair Stations . | . . . Recycling Units . | . . . Scanalyzers . | . . . Garrison Access . | . . . Data Cores Recovered . | . . . Used . | . . . Hacking Detections 5 | . 5 . Full Trace Events . | . . . Feedback Events . | . . . Feedback Blocked . | . . . Robot Schematics Acquired . | . . . Robots Built . | . . . Authchips . | . . . Time . | . . . Total Robot Build Rating . | . . . Part Schematics Acquired . | . . . Parts Built . | . . . Authchips . | . . . Time . | . . . Total Part Build Rating . | . . . Part Studies Acquired . | . . . Parts Repaired . | . . . Time . | . . . Parts Recycled . | . . . Recycled Matter . | . . . Retrieved Matter . | . . . Retrieved Components 19 | . 19 . Parts Scanalyzed . | . . . Part Schematics Acquired . | . . . Parts Damaged . | . . . Bothacking | -11 -10 -10 ------------ Run | Yrd Mat Sub Used RIF Installer . | . . . Robots Hacked . | . . . Non-combat . | . . . Combat . | . . . Robot Hacks Applied . | . . . Relay Couplers Released . | . . . Fabnet Peak Effective % . | . . . Robots Rewired . | . . . Allies Hacked . | . . . Hacks Repelled . | . . . Allies | -11 -10 -10 -------- Run | Yrd Mat Sub Total Allies . | . . . Largest Group . | . . . Highest-Rated Group . | . . . Highest-Rated Ally . | . . . Total Orders . | . . . Ally Attacks . | . . . Total Damage . | . . . Kills . | . . . Allies Corrupted . | . . . Allies Melted . | . . . Intel | -11 -10 -10 ------- Run | Yrd Mat Sub Active Infowar (turns) 5206 | . 755 4451 Sensors 3833 | . 755 3078 Structural 4567 | . 116 4451 Robot Analysis Total 1 | . 1 . Derelict Logs Recovered 1 | . . 1 Drone Launches . | . . . Drone Recoveries . | . . . Exploration | -11 -10 -10 ------------- Run | Yrd Mat Sub Turns Passed 7777 | 71 1605 6101 Spaces Moved 2725 | 46 845 1834 Core 22 | 22 . . Treads 1984 | 24 845 1115 Legs 719 | . . 719 Wheels . | . . . Hover . | . . . Flight . | . . . Fastest Speed 50 | 50 160 160 Average Speed 228 | 107 160 263 Slowest Speed 560 | 160 160 560 Overloaded Moves . | . . . Propulsion Burnouts . | . . . Robots Hopped . | . . . Potential Cave-ins . | . . . Cave-ins Triggered . | . . . Exploration Rate (%) 64 | 3 99 90 Regions Visited 2 Branch Regions 1 Pre-discovered Areas 3 | . . 3 Known Exits Taken 2 | 1 1 . Unknown Exits Taken . | . . . Scrap Searched 17 | . . 17 Spaces Dug 7 | . . 7 Terrain Destroyed 10 | . . 10 Melee . | . . . Projectile 10 | . . 10 AOE . | . . . Terrain Rammed . | . . . Walls Destroyed . | . . . Machines Disabled . | . . . Actions | -11 -10 -10 --------- Run | Yrd Mat Sub Total 4027 | 61 1028 2938 Wait 1076 | . 135 941 Move 2723 | 45 844 1834 Hop . | . . . Pick Up 45 | 7 9 29 Fast Attach 1 | 1 . . Attach 16 | 5 3 8 Detach 3 | . . 3 Swap 8 | . 1 7 Drop 10 | . 1 9 Fire 145 | 3 35 107 Melee . | . . . Ram . | . . . Kick . | . . . Crush . | . . . Escape Stasis . | . . . Rewire . | . . . Trap . | . . . Miscellaneous . | . . . Route ------- -11/Scrapyard -10/Materials (discovered 5 exits: *Mat x3 / *Min / *Sub) -10/Subcaves (discovered 2 exits: *Mat x2) History --------- Turn | Location | Event 6 | -11/Scrapyard | Identified exit to Materials 6 | -11/Scrapyard | Discovered exit to Materials (range 15) 72 | -11/Scrapyard | Entered Materials 72 | -10/Materials | Evolved 1 slot: Utility x1 305 | -10/Materials | Build established: Hacker-Mutant 499 | -10/Materials | Identified exit to Materials 499 | -10/Materials | Discovered exit to Materials (range 15) 756 | -10/Materials | Discovered exit to Materials (range 10) 951 | -10/Materials | Discovered exit to Materials (range 16) 1015 | -10/Materials | Identified exit to Mines 1015 | -10/Materials | Discovered exit to Mines (range 13) 1020 | -10/Materials | Identified exit to Subcaves 1020 | -10/Materials | Discovered exit to Subcaves (range 7) 1677 | -10/Materials | Entered Subcaves 1678 | -10/Subcaves | Approached by a straggling Scientist 2123 | -10/Subcaves | Curiously followed by a Cobbler waking with a query about "LVR3C" 2543 | -10/Subcaves | Learned location of Zion (-7) 2543 | -10/Subcaves | Met a Zionite searching for "candidates" 2709 | -10/Subcaves | Identified exit to Materials 2709 | -10/Subcaves | Discovered exit to Materials (range 13) 2758 | -10/Subcaves | Core integrity fell below 50% 4191 | -10/Subcaves | Shifting Twisted Machinery released Mak. System Restoration Module 4196 | -10/Subcaves | Shifting Twisted Machinery released Sub. Beam Cannon 4270 | -10/Subcaves | Learned location of Storage (-7) 4292 | -10/Subcaves | Visited 4L-MR0's lab 4315 | -10/Subcaves | Found Meta Core 4317 | -10/Subcaves | Attached Meta Core, gained temporary slots: Propulsion, Utility, Weapon 4339 | -10/Subcaves | Found Prototype Special Melee Weapon 4606 | -10/Subcaves | Build established: Hauler-Mutant 4887 | -10/Subcaves | Visited Clippyterm 4904 | -10/Subcaves | Learned location of Extension (-6) 4904 | -10/Subcaves | Learned Factory stockpile data 5178 | -10/Subcaves | Found Cargo Legs 5181 | -10/Subcaves | Attached Cargo Legs, gained temporary slots: Utility x2 5295 | -10/Subcaves | Discovered exit to Materials (range 8) 5548 | -10/Subcaves | Shifting Twisted Machinery released Sub. Monowheel 5620 | -10/Subcaves | Core integrity fell below 20% 6448 | -10/Subcaves | Ambushed by Subdweller buried in earth 6448 | -10/Subcaves | Ambushed by Subdweller buried in earth 6753 | -10/Subcaves | Build established: Hauler-Gunner 7122 | -10/Subcaves | Disturbed a concealed Subdweller 7707 | -10/Subcaves | Disturbed a concealed Subdweller 7778 | -10/Subcaves | Destroyed by TA-944(R) with Subdweller Laser Last Messages --------------- 07686_ Found Piercing Trap. 07686_ Found Battle Cannon. 07686_ Found 37 Matter. 07689_ 2U-ASQ(O) collects matter. 07693_ Searching scrap... 07693_ Found Sub. Power Source. 07693_ Found Sub. Beam Cannon. 07693_ Found 31 Matter. 07694_ 2U-ASQ(O) puts together Sub. Machine Gun. 07695_ 2U-ASQ(O) collects matter. 07697_ Searching scrap... 07697_ Found Piercing Trap. 07697_ Found Battle Cannon. 07697_ Found 69 Matter. 07702_ 2U-ASQ(O) collects matter. 07707_ VF-BEU(R) angrily emerges from the Twisted Machinery. 07724_ VF-BEU(R) destroyed. 07724_ Slug penetrates Wall. 07727_ Acquired 28 matter. Map ----- +----------------------------------------------------+ | ?????????????????????????###### ##????????? | | ??????????????????????????##### ##????????? | | ???????????????####??????####### ###????????? | | ???????????????# ##??## ##### ####????????? | | ???????????????# ### ##### #####?????????? | | ???????????????# #?### ####??????????? | | ???????????????# ##?## ####??????????? | | ???????????????## #??## ##??????????? | | ????????????????# ## ##?## ###??????????? | | ????????????????#?## #?## ########??????? | | ??????????????????# #?## ########??????? | | ??????????????????# ##?## ### ##??????? | | ??????????????????# ###### ### ##??????? | | ????????????????### ## ## #####???? | | ???????????????## ######### | | ??????????????## ## ###### | | ??????????????# #### ## ^ | | ??????????????#### ####### #### | | ?????????????????## ####?########### ^ | | ??????????????????## ### #?????########## ^ | | ???????????????????##### #?????????###### | | ???????????????###??#### #?????????## | | ??????????????## ### ## #?????????## ^ | | ??????????????# #?# ?????## ## | | ??????????????# = #### ?????## ### | | ??????????????# "#& & @ ### ##### # ### | | ??????????????# ]*#### # ##### ##### ### ## | | ??????????????# #]#""# ## #??### ## ## | | ??????????????# # &"[# ## ##??### #### | | ??????????????# #""]"# ## #???## # ##### | | ??????????????## #" "&# ## #???## ? ## ###### | | ???????????????# #####[ ## ?? ??? ## ##### | | ???????????????# ## ??????## ##### | | ???????????????## #####? ????????## # #### | | ???????????????## #????? ???????? ## ### | | ??????????????## ##????? ????? ## ### | | ??????????????# ##?????? ????### ## ### | | ??????????????## #??????# R ????#### ### #### | | ??????????????# #???????# ##?????###### ##### | | ??????????????## ##???????? ?????????#### ### | | ??????????????# #?????????????????????### ## | | ??????????????# ##?????????????????????### | | ??????????????# ""#"" ???????????????????## | | ??????????????# """"" ???????????????????###### | | ??????????????## """"" ???????????????????#### | | ???????????????#####"#????????????????????### | | ?????????????????????#???????????????????### ## | | ?????????????????????????????????????????## ## | | ????????????????????????????????????????? ## ? | | ??????????????????????????????????????????? ###### | +----------------------------------------------------+ Best States ------------- Heat Dissipation 25 Energy Generation 17 Energy Capacity 265 Matter Stores 300 Matter Capacity 300 Sight Range 16 Robot Scan Range 14 Terrain Scan Density 10 Resistance: KI 35 Resistance: TH 35 Resistance: EX 35 Resistance: EM 35 Resistance: I 35 Resistance: S 35 Resistance: P 35 Evasion (%) 50 Recoil Reduction 2 Offensive Hacking 20 Item Schematics ----------------- None Robot Schematics ------------------ None Fabricated ------------ Nothing Repaired ---------- Nothing Studied --------- None Alien Tech Used ----------------- None Achievements -------------- None Challenges ------------ None Game ------ Seed CoilTargetInitializer Manual? 0 Play Time 00:20:02 Cumulative 327.1 hours Start 2026.02.10 @ 09:13:18 End 2026.02.10 @ 09:32:07 Sessions 1 Manual Loads 0 Difficulty Explorer Special Mode None Game No. 518 Rogue 0 Adventurer 0 Explorer 518 Win Type - Total 0 Types 0/0/0/0/0/0/0/0/0/0 Lore% 77 Gallery% 67 Achievement% 56 Wizard Run 0 Options --------- Layout 1 ASCII 0 Keyboard 0 Movement Mouse Keybinds 1 Fullscreen 1 Font 24/Smallcaps Map View 50x35 Zoom Use 0% Tactical HUD 1 Map Filters NONE Filters NONE Steam 1 RUN: 4d66353d-b960-4ced-927e-edca71d46acf